[Event "*** Titled Tuesday 3|2 Blitz (Early)"]
[Site "Chess.com"]
[Date "2017.01.03"]
[Round "4"]
[White "PowerThinking2650"]
[Black "Rickstereo"]
[Result "1-0"]
[WhiteElo "2279"]
[BlackElo "2168"]
[TimeControl "180+2"]
[EndTime "11:49:19 PST"]
[Termination "PowerThinking2650 won by resignation"]

1. e4 {[%clk 0:03:02]} 1... c5 {[%clk 0:03:00.1]} 2. Nf3 {[%clk 0:03:02.8]} 2...
Nc6 {[%clk 0:03:00.3]} 3. d4 {[%clk 0:03:03.6]} 3... cxd4 {[%clk 0:03:01.4]} 4.
Nxd4 {[%clk 0:03:05.3]} 4... Nf6 {[%clk 0:03:03]} 5. Nc3 {[%clk 0:03:05.9]} 5...
e5 {[%clk 0:03:03.7]} 6. Ndb5 {[%clk 0:03:06.6]} 6... d6 {[%clk 0:03:05.1]} 7.
Bg5 {[%clk 0:03:07.4]} 7... a6 {[%clk 0:03:06.5]} 8. Na3 {[%clk 0:03:08.5]} 8...
b5 {[%clk 0:03:07.6]} 9. Nd5 {[%clk 0:03:08.3]} 9... Be7 {[%clk 0:03:08.8]} 10.
Bxf6 {[%clk 0:03:09.8]} 10... Bxf6 {[%clk 0:03:10.7]} 11. c3 {[%clk 0:03:11.5]}
11... O-O {[%clk 0:03:10.1]} 12. Nc2 {[%clk 0:03:12.8]} 12... Bg5 {[%clk
0:03:11.4]} 13. a4 {[%clk 0:03:07.5]} 13... bxa4 {[%clk 0:03:11.2]} 14. Rxa4
{[%clk 0:03:07.8]} 14... a5 {[%clk 0:03:12.6]} 15. Bc4 {[%clk 0:03:06.6]} 15...
Be6 {[%clk 0:03:11.3]} 16. b3 {[%clk 0:03:04.2]} 16... Ne7 {[%clk 0:03:10]} 17.
O-O {[%clk 0:02:39.1]} 17... Rc8 {[%clk 0:02:34]} 18. Nce3 {[%clk 0:02:31.3]}
18... Bxe3 {[%clk 0:02:33.8]} 19. Nxe3 {[%clk 0:02:32]} 19... Qb6 {[%clk
0:02:20.5]} 20. Bxe6 {[%clk 0:02:25.1]} 20... fxe6 {[%clk 0:02:21.7]} 21. Nc4
{[%clk 0:02:26.2]} 21... Qb8 {[%clk 0:02:01.4]} 22. Rxa5 {[%clk 0:01:58.7]}
22... d5 {[%clk 0:01:55.6]} 23. exd5 {[%clk 0:01:51]} 23... exd5 {[%clk
0:01:57.5]} 24. Ne3 {[%clk 0:01:48.8]} 24... Rxc3 {[%clk 0:01:26.5]} 25. Nxd5
{[%clk 0:01:49.4]} 25... Nxd5 {[%clk 0:01:26.3]} 26. Qxd5+ {[%clk 0:01:49.1]}
26... Kh8 {[%clk 0:01:27.4]} 27. Rb5 {[%clk 0:01:42.6]} 27... Qc7 {[%clk
0:01:18.1]} 28. Rb7 {[%clk 0:01:37.4]} 28... Qc5 {[%clk 0:00:25.6]} 29. Qxc5
{[%clk 0:01:20.5]} 29... Rxc5 {[%clk 0:00:26.2]} 30. g3 {[%clk 0:01:02.2]} 30...
Rc2 {[%clk 0:00:25.3]} 31. f4 {[%clk 0:00:55.5]} 31... exf4 {[%clk 0:00:24.2]}
32. Rxf4 {[%clk 0:00:56]} 32... Rg8 {[%clk 0:00:16.6]} 33. Rf2 {[%clk
0:00:52.3]} 33... Rc1+ {[%clk 0:00:16.1]} 34. Kg2 {[%clk 0:00:53.1]} 34... h5
{[%clk 0:00:16.7]} 35. h4 {[%clk 0:00:50.8]} 35... Rc3 {[%clk 0:00:11.6]} 36.
Rf5 {[%clk 0:00:50.8]} 36... Rd8 {[%clk 0:00:05.8]} 37. Rxh5+ {[%clk 0:00:49.4]}
37... Kg8 {[%clk 0:00:07.4]} 38. Rg5 {[%clk 0:00:48.7]} 1-0

[Event "*** Titled Tuesday 3|2 Blitz (Early)"]
[Site "Chess.com"]
[Date "2017.01.03"]
[Round "4"]
[White "Krutoy123"]
[Black "Anton_Demchenko"]
[Result "1-0"]
[WhiteElo "2451"]
[BlackElo "2630"]
[TimeControl "180+2"]
[EndTime "11:49:30 PST"]
[Termination "Krutoy123 won by checkmate"]

1. Nf3 {[%clk 0:03:01.9]} 1... Nf6 {[%clk 0:03:00.7]} 2. g3 {[%clk 0:03:03.4]}
2... g6 {[%clk 0:03:01.8]} 3. Bg2 {[%clk 0:03:05.3]} 3... Bg7 {[%clk 0:03:03.5]}
4. O-O {[%clk 0:03:07.2]} 4... O-O {[%clk 0:03:05.4]} 5. d3 {[%clk 0:03:09.1]}
5... d6 {[%clk 0:03:05.6]} 6. c4 {[%clk 0:03:09.5]} 6... e5 {[%clk 0:03:05.7]}
7. Nc3 {[%clk 0:03:10.1]} 7... h6 {[%clk 0:03:03.2]} 8. a3 {[%clk 0:03:05.6]}
8... a5 {[%clk 0:03:04]} 9. b3 {[%clk 0:03:00.7]} 9... c6 {[%clk 0:03:04.7]} 10.
e4 {[%clk 0:02:55.1]} 10... Be6 {[%clk 0:02:56.3]} 11. d4 {[%clk 0:02:50.9]}
11... Nbd7 {[%clk 0:02:49.2]} 12. d5 {[%clk 0:02:47]} 12... cxd5 {[%clk
0:02:49.8]} 13. cxd5 {[%clk 0:02:43.3]} 13... Bg4 {[%clk 0:02:50.7]} 14. h3
{[%clk 0:02:44.1]} 14... Bxf3 {[%clk 0:02:51.4]} 15. Bxf3 {[%clk 0:02:44.1]}
15... Nc5 {[%clk 0:02:38.5]} 16. Be3 {[%clk 0:02:40.3]} 16... Rc8 {[%clk
0:02:39.5]} 17. h4 {[%clk 0:02:27.6]} 17... Qd7 {[%clk 0:02:28.4]} 18. b4 {[%clk
0:02:24.2]} 18... axb4 {[%clk 0:02:19.1]} 19. axb4 {[%clk 0:02:26.1]} 19... Na6
{[%clk 0:02:20.4]} 20. Na4 {[%clk 0:02:27.3]} 20... Qd8 {[%clk 0:01:49.6]} 21.
Nb6 {[%clk 0:02:24.9]} 21... Rc3 {[%clk 0:01:49.8]} 22. Qd2 {[%clk 0:02:19.5]}
22... Rb3 {[%clk 0:01:41.5]} 23. Rab1 {[%clk 0:02:15.7]} 23... Rxb1 {[%clk
0:01:39.7]} 24. Rxb1 {[%clk 0:02:17.6]} 24... h5 {[%clk 0:01:40.2]} 25. Rc1
{[%clk 0:02:15.1]} 25... Nc7 {[%clk 0:01:19.2]} 26. Qe2 {[%clk 0:02:15.5]} 26...
Qe7 {[%clk 0:01:06.2]} 27. Qc4 {[%clk 0:02:11.4]} 27... Nfe8 {[%clk 0:01:01.4]}
28. b5 {[%clk 0:02:04.5]} 28... Kh7 {[%clk 0:01:02.6]} 29. Be2 {[%clk
0:02:01.1]} 29... Bh6 {[%clk 0:01:03.4]} 30. Bxh6 {[%clk 0:01:57.9]} 30... Kxh6
{[%clk 0:01:05.3]} 31. Nc8 {[%clk 0:01:58.1]} 31... Qd8 {[%clk 0:01:03.9]} 32.
b6 {[%clk 0:01:56]} 32... Na6 {[%clk 0:01:04.9]} 33. Qxa6 {[%clk 0:01:51.8]}
33... bxa6 {[%clk 0:00:59.4]} 34. b7 {[%clk 0:01:52.9]} 34... Qa5 {[%clk
0:00:45.1]} 35. b8=Q {[%clk 0:01:50.5]} 35... Qd2 {[%clk 0:00:46]} 36. Rf1
{[%clk 0:01:48.2]} 36... Qxe2 {[%clk 0:00:26.3]} 37. Nxd6 {[%clk 0:01:47.7]}
37... Qc2 {[%clk 0:00:08.8]} 38. Nxe8 {[%clk 0:01:45.7]} 38... Qa4 {[%clk
0:00:09.8]} 39. Qc7 {[%clk 0:01:38.1]} 39... Qxe8 {[%clk 0:00:09]} 40. Rb1
{[%clk 0:01:32.9]} 40... Qd8 {[%clk 0:00:07.5]} 41. Qxe5 {[%clk 0:01:30.6]}
41... Re8 {[%clk 0:00:08.5]} 42. Qd4 {[%clk 0:01:27.4]} 42... Qe7 {[%clk
0:00:05]} 43. Rb4 {[%clk 0:01:28.2]} 43... a5 {[%clk 0:00:05.5]} 44. d6 {[%clk
0:01:23.7]} 44... Qd7 {[%clk 0:00:03.9]} 45. Ra4 {[%clk 0:01:21.4]} 45... Qc6
{[%clk 0:00:04.2]} 46. Rxa5 {[%clk 0:01:17.7]} 46... Rxe4 {[%clk 0:00:04]} 47.
Qh8# {[%clk 0:01:15.1]} 1-0

[Event "*** Titled Tuesday 3|2 Blitz (Early)"]
[Site "Chess.com"]
[Date "2017.01.03"]
[Round "4"]
[White "eldur16"]
[Black "bivark"]
[Result "0-1"]
[WhiteElo "2071"]
[BlackElo "2363"]
[TimeControl "180+2"]
[EndTime "11:50:02 PST"]
[Termination "bivark won by resignation"]

1. d4 {[%clk 0:03:00.9]} 1... d5 {[%clk 0:02:59.4]} 2. c4 {[%clk 0:03:00.8]}
2... c6 {[%clk 0:03:00]} 3. Nf3 {[%clk 0:03:01.2]} 3... Nf6 {[%clk 0:03:01.4]}
4. e3 {[%clk 0:03:02.2]} 4... a6 {[%clk 0:03:02.6]} 5. Nbd2 {[%clk 0:02:57.4]}
5... Bg4 {[%clk 0:03:02.3]} 6. Bd3 {[%clk 0:02:55.5]} 6... e6 {[%clk 0:03:03.1]}
7. O-O {[%clk 0:02:55.6]} 7... Nbd7 {[%clk 0:03:01.1]} 8. b3 {[%clk 0:02:56.1]}
8... Bd6 {[%clk 0:03:01.8]} 9. h3 {[%clk 0:02:55.8]} 9... Bh5 {[%clk 0:03:02.4]}
10. Bb2 {[%clk 0:02:56.2]} 10... Bg6 {[%clk 0:03:01.4]} 11. Qc2 {[%clk
0:02:51.4]} 11... O-O {[%clk 0:02:57.4]} 12. Rad1 {[%clk 0:02:49.5]} 12... Qe7
{[%clk 0:02:52.3]} 13. e4 {[%clk 0:02:49.1]} 13... dxe4 {[%clk 0:02:42.8]} 14.
Nxe4 {[%clk 0:02:49.9]} 14... Nxe4 {[%clk 0:02:41.8]} 15. Bxe4 {[%clk
0:02:50.4]} 15... Bxe4 {[%clk 0:02:10.6]} 16. Qxe4 {[%clk 0:02:50.6]} 16... Rfe8
{[%clk 0:02:12.2]} 17. Rfe1 {[%clk 0:02:49.7]} 17... Bb4 {[%clk 0:02:12.1]} 18.
Re2 {[%clk 0:02:50]} 18... Rad8 {[%clk 0:02:09.7]} 19. g3 {[%clk 0:02:43.4]}
19... h6 {[%clk 0:02:02.3]} 20. Kg2 {[%clk 0:02:43.8]} 20... Ba3 {[%clk
0:01:51.8]} 21. Ba1 {[%clk 0:02:39.9]} 21... Bd6 {[%clk 0:01:40.1]} 22. d5
{[%clk 0:02:33.6]} 22... exd5 {[%clk 0:01:30.6]} 23. Qg4 {[%clk 0:02:31.4]}
23... f5 {[%clk 0:01:00.4]} 24. Qg6 {[%clk 0:02:23.3]} 24... Qf8 {[%clk
0:00:47.8]} 25. Rxe8 {[%clk 0:02:20.5]} 25... Rxe8 {[%clk 0:00:48.4]} 26. Bxg7
{[%clk 0:02:14.4]} 26... Qf7 {[%clk 0:00:47.7]} 27. Qxh6 {[%clk 0:02:10.3]}
27... Qxg7 {[%clk 0:00:42.4]} 28. Qxd6 {[%clk 0:02:10.3]} 28... Re4 {[%clk
0:00:28.5]} 29. cxd5 {[%clk 0:02:05.3]} 29... c5 {[%clk 0:00:29.8]} 30. Qc7
{[%clk 0:01:51.3]} 30... Re2 {[%clk 0:00:30.4]} 31. Nh4 {[%clk 0:01:35.2]} 31...
Qe7 {[%clk 0:00:18.6]} 32. Rf1 {[%clk 0:00:58.2]} 32... Qe4+ {[%clk 0:00:15.4]}
33. Kg1 {[%clk 0:00:58]} 33... Ne5 {[%clk 0:00:13.8]} 34. Qc8+ {[%clk
0:00:55.9]} 34... Kf7 {[%clk 0:00:09.1]} 35. Qxb7+ {[%clk 0:00:56.3]} 35... Kf6
{[%clk 0:00:09.7]} 36. Qxa6+ {[%clk 0:00:56.8]} 36... Kg5 {[%clk 0:00:10.8]} 37.
Qe6 {[%clk 0:00:38.4]} 37... Nf3+ {[%clk 0:00:08.4]} 38. Nxf3+ {[%clk
0:00:38.5]} 38... Qxf3 {[%clk 0:00:09.7]} 39. h4+ {[%clk 0:00:36.2]} 39... Kh5
{[%clk 0:00:10.7]} 40. Qf7+ {[%clk 0:00:36.9]} 40... Kg4 {[%clk 0:00:11.3]} 41.
Kh2 {[%clk 0:00:08.7]} 41... Rxf2+ {[%clk 0:00:12.5]} 42. Rxf2 {[%clk
0:00:09.5]} 42... Qxf2+ {[%clk 0:00:14.4]} 43. Kh1 {[%clk 0:00:10.8]} 43... Kh3
{[%clk 0:00:15.9]} 0-1

[Event "*** Titled Tuesday 3|2 Blitz (Early)"]
[Site "Chess.com"]
[Date "2017.01.03"]
[Round "4"]
[White "evgenyermolaev"]
[Black "HK1974"]
[Result "1-0"]
[WhiteElo "2401"]
[BlackElo "2187"]
[TimeControl "180+2"]
[EndTime "11:50:10 PST"]
[Termination "evgenyermolaev won on time"]

1. e4 {[%clk 0:03:02]} 1... c5 {[%clk 0:02:56.7]} 2. Nf3 {[%clk 0:03:01.9]} 2...
e6 {[%clk 0:02:58.6]} 3. d4 {[%clk 0:03:02.7]} 3... cxd4 {[%clk 0:03:00.3]} 4.
Nxd4 {[%clk 0:03:03.7]} 4... Nf6 {[%clk 0:03:01.6]} 5. Nc3 {[%clk 0:03:04.4]}
5... Bb4 {[%clk 0:03:00.4]} 6. e5 {[%clk 0:03:04.9]} 6... Nd5 {[%clk 0:03:01.1]}
7. Bd2 {[%clk 0:03:05.5]} 7... Nxc3 {[%clk 0:03:01.8]} 8. bxc3 {[%clk 0:03:07]}
8... Be7 {[%clk 0:03:01.8]} 9. Qg4 {[%clk 0:03:06.8]} 9... O-O {[%clk 0:03:01]}
10. Bh6 {[%clk 0:03:05.3]} 10... g6 {[%clk 0:02:55.1]} 11. Bxf8 {[%clk 0:03:05]}
11... Bxf8 {[%clk 0:02:54.7]} 12. Bd3 {[%clk 0:03:04.9]} 12... Qa5 {[%clk
0:02:52.4]} 13. O-O {[%clk 0:02:59.8]} 13... Qxe5 {[%clk 0:02:50.5]} 14. Rfe1
{[%clk 0:02:59]} 14... Qa5 {[%clk 0:02:48]} 15. Nf3 {[%clk 0:02:34]} 15... Qxc3
{[%clk 0:02:42.5]} 16. Ng5 {[%clk 0:02:32.1]} 16... Nc6 {[%clk 0:02:36]} 17. Qf4
{[%clk 0:02:19.6]} 17... Qg7 {[%clk 0:02:28.9]} 18. Qc7 {[%clk 0:01:55.8]} 18...
d5 {[%clk 0:02:11.8]} 19. Rab1 {[%clk 0:01:50]} 19... h6 {[%clk 0:01:44.6]} 20.
Nf3 {[%clk 0:01:49.2]} 20... f5 {[%clk 0:01:31.9]} 21. Qf4 {[%clk 0:01:19.8]}
21... Qf6 {[%clk 0:01:18.8]} 22. c4 {[%clk 0:01:12.5]} 22... g5 {[%clk
0:01:11.6]} 23. Qc7 {[%clk 0:01:00.5]} 23... d4 {[%clk 0:01:05.5]} 24. Rxb7
{[%clk 0:00:59.5]} 24... Ne7 {[%clk 0:00:16.4]} 25. Rxa7 {[%clk 0:00:53.8]}
25... Rxa7 {[%clk 0:00:16.6]} 26. Qxa7 {[%clk 0:00:48.5]} 26... g4 {[%clk
0:00:15.7]} 27. Ne5 {[%clk 0:00:45.9]} 27... Bg7 {[%clk 0:00:11.5]} 28. Qc7
{[%clk 0:00:37]} 28... Kh7 {[%clk 0:00:07.8]} 29. a4 {[%clk 0:00:31.1]} 29...
Qg5 {[%clk 0:00:06.6]} 30. Bf1 {[%clk 0:00:16.6]} 30... Qd2 {[%clk 0:00:06.7]}
31. Re2 {[%clk 0:00:15.3]} 31... Qd1 {[%clk 0:00:06.8]} 32. Qxe7 {[%clk
0:00:15.6]} 32... d3 {[%clk 0:00:07.8]} 33. Nxd3 {[%clk 0:00:14.5]} 33... Qxd3
{[%clk 0:00:03.5]} 34. Rxe6 {[%clk 0:00:15.4]} 1-0

[Event "*** Titled Tuesday 3|2 Blitz (Early)"]
[Site "Chess.com"]
[Date "2017.01.03"]
[Round "4"]
[White "biostatistician"]
[Black "FastChance"]
[Result "1/2-1/2"]
[WhiteElo "2439"]
[BlackElo "2502"]
[TimeControl "180+2"]
[EndTime "11:50:47 PST"]
[Termination "Game drawn - insufficient material"]

1. d4 {[%clk 0:03:02]} 1... e6 {[%clk 0:03:01.2]} 2. Nf3 {[%clk 0:03:03.2]} 2...
Nf6 {[%clk 0:02:59.7]} 3. c4 {[%clk 0:03:04.5]} 3... Bb4+ {[%clk 0:02:57.7]} 4.
Nbd2 {[%clk 0:03:05]} 4... d5 {[%clk 0:02:56.9]} 5. a3 {[%clk 0:03:06.9]} 5...
Be7 {[%clk 0:02:57]} 6. Qc2 {[%clk 0:03:06.6]} 6... O-O {[%clk 0:02:57.6]} 7. e4
{[%clk 0:03:08.1]} 7... c5 {[%clk 0:02:57.4]} 8. cxd5 {[%clk 0:03:02.2]} 8...
exd5 {[%clk 0:02:55.9]} 9. e5 {[%clk 0:03:03.2]} 9... Nfd7 {[%clk 0:02:55.9]}
10. Bd3 {[%clk 0:03:04.2]} 10... g6 {[%clk 0:02:52.8]} 11. O-O {[%clk
0:03:04.3]} 11... Nc6 {[%clk 0:02:51.2]} 12. Re1 {[%clk 0:03:05.2]} 12... cxd4
{[%clk 0:02:43.1]} 13. b4 {[%clk 0:02:55.6]} 13... a6 {[%clk 0:02:18.4]} 14. Nb3
{[%clk 0:02:52.2]} 14... Re8 {[%clk 0:02:11.1]} 15. Nbxd4 {[%clk 0:02:45.7]}
15... Nxd4 {[%clk 0:02:09.7]} 16. Nxd4 {[%clk 0:02:47.6]} 16... Nf8 {[%clk
0:02:08.7]} 17. Bb2 {[%clk 0:02:39.8]} 17... Ne6 {[%clk 0:02:06.8]} 18. Rac1
{[%clk 0:02:40]} 18... Bg5 {[%clk 0:01:53.1]} 19. Rcd1 {[%clk 0:02:35.5]} 19...
Bd7 {[%clk 0:01:50.6]} 20. g3 {[%clk 0:02:07.1]} 20... Rc8 {[%clk 0:01:49.9]}
21. Qe2 {[%clk 0:02:07.9]} 21... Ba4 {[%clk 0:01:35.7]} 22. Ra1 {[%clk
0:01:50.8]} 22... Qb6 {[%clk 0:01:33.7]} 23. Nxe6 {[%clk 0:01:43.6]} 23... fxe6
{[%clk 0:01:22.1]} 24. Qg4 {[%clk 0:01:39.9]} 24... Bh6 {[%clk 0:01:11.5]} 25.
h4 {[%clk 0:01:18]} 25... Bc2 {[%clk 0:01:03.9]} 26. Bd4 {[%clk 0:01:04.9]}
26... Qd8 {[%clk 0:00:55]} 27. Bxc2 {[%clk 0:00:55.2]} 27... Rxc2 {[%clk
0:00:56.9]} 28. Re2 {[%clk 0:00:50.5]} 28... Rc4 {[%clk 0:00:53.4]} 29. Rd1
{[%clk 0:00:45.8]} 29... Qd7 {[%clk 0:00:47.7]} 30. h5 {[%clk 0:00:42.9]} 30...
Qf7 {[%clk 0:00:48.2]} 31. hxg6 {[%clk 0:00:35.7]} 31... Qxg6 {[%clk 0:00:42.7]}
32. Qxg6+ {[%clk 0:00:35.2]} 32... hxg6 {[%clk 0:00:44.6]} 33. Kg2 {[%clk
0:00:28.2]} 33... g5 {[%clk 0:00:38.7]} 34. Be3 {[%clk 0:00:21]} 34... Kg7
{[%clk 0:00:34.8]} 35. Rd4 {[%clk 0:00:20.9]} 35... Rec8 {[%clk 0:00:33.4]} 36.
Red2 {[%clk 0:00:21.7]} 36... g4 {[%clk 0:00:28.4]} 37. Bxh6+ {[%clk 0:00:17.8]}
37... Kxh6 {[%clk 0:00:30.3]} 38. f4 {[%clk 0:00:13.8]} 38... gxf3+ {[%clk
0:00:30.4]} 39. Kxf3 {[%clk 0:00:15.7]} 39... Kg5 {[%clk 0:00:29]} 40. Rxc4
{[%clk 0:00:13.4]} 40... dxc4 {[%clk 0:00:13.9]} 41. Ke4 {[%clk 0:00:13.3]}
41... c3 {[%clk 0:00:13.7]} 42. Rc2 {[%clk 0:00:14.4]} 42... Kg4 {[%clk
0:00:12]} 43. Kd4 {[%clk 0:00:12.6]} 43... Kxg3 {[%clk 0:00:13]} 44. a4 {[%clk
0:00:13]} 44... Kf4 {[%clk 0:00:13.8]} 45. Rf2+ {[%clk 0:00:13.4]} 45... Kg3
{[%clk 0:00:14.7]} 46. Rc2 {[%clk 0:00:15.3]} 46... b5 {[%clk 0:00:14.8]} 47.
axb5 {[%clk 0:00:14.9]} 47... axb5 {[%clk 0:00:16.7]} 48. Rxc3+ {[%clk
0:00:15.9]} 48... Rxc3 {[%clk 0:00:16.8]} 49. Kxc3 {[%clk 0:00:17.8]} 49... Kf4
{[%clk 0:00:17.3]} 50. Kd4 {[%clk 0:00:19.7]} 50... Kf5 {[%clk 0:00:18]} 51. Kc5
{[%clk 0:00:21.1]} 51... Kxe5 {[%clk 0:00:19.6]} 52. Kxb5 {[%clk 0:00:23]} 52...
Kd4 {[%clk 0:00:19.4]} 53. Kc6 {[%clk 0:00:22.3]} 53... e5 {[%clk 0:00:21.3]}
54. b5 {[%clk 0:00:23.8]} 54... e4 {[%clk 0:00:23.2]} 55. b6 {[%clk 0:00:25.7]}
55... e3 {[%clk 0:00:25.1]} 56. b7 {[%clk 0:00:27.4]} 56... e2 {[%clk 0:00:27]}
57. b8=Q {[%clk 0:00:29]} 57... e1=Q {[%clk 0:00:28.9]} 58. Qd8+ {[%clk
0:00:18.5]} 58... Ke3 {[%clk 0:00:26.2]} 59. Qe7+ {[%clk 0:00:19.3]} 59... Kf2
{[%clk 0:00:27.4]} 60. Qxe1+ {[%clk 0:00:21.2]} 60... Kxe1 {[%clk 0:00:27.8]}
1/2-1/2

[Event "*** Titled Tuesday 3|2 Blitz (Early)"]
[Site "Chess.com"]
[Date "2017.01.03"]
[Round "4"]
[White "Dr-Bassem"]
[Black "AndrBaryshpolets"]
[Result "1-0"]
[WhiteElo "2649"]
[BlackElo "2422"]
[TimeControl "180+2"]
[EndTime "11:50:57 PST"]
[Termination "Dr-Bassem won on time"]

1. e4 {[%clk 0:03:02]} 1... e5 {[%clk 0:03:00.5]} 2. Nf3 {[%clk 0:03:01.7]} 2...
Nc6 {[%clk 0:03:00.9]} 3. Bb5 {[%clk 0:03:00.5]} 3... Nf6 {[%clk 0:03:01.2]} 4.
Qe2 {[%clk 0:03:00.5]} 4... Bc5 {[%clk 0:03:01.3]} 5. O-O {[%clk 0:03:00.6]}
5... O-O {[%clk 0:02:31.3]} 6. c3 {[%clk 0:03:00.4]} 6... Re8 {[%clk 0:02:29.3]}
7. d3 {[%clk 0:02:57.9]} 7... a6 {[%clk 0:02:27.3]} 8. Ba4 {[%clk 0:02:58.6]}
8... b5 {[%clk 0:02:24.9]} 9. Bb3 {[%clk 0:02:59.6]} 9... h6 {[%clk 0:02:19.7]}
10. Be3 {[%clk 0:02:59]} 10... Bf8 {[%clk 0:02:07]} 11. a4 {[%clk 0:02:59.5]}
11... Rb8 {[%clk 0:01:55.7]} 12. axb5 {[%clk 0:03:00.1]} 12... axb5 {[%clk
0:01:57.6]} 13. Nbd2 {[%clk 0:02:39.4]} 13... d5 {[%clk 0:01:56.6]} 14. exd5
{[%clk 0:02:40.2]} 14... Nxd5 {[%clk 0:01:57.8]} 15. Ne4 {[%clk 0:02:37.3]}
15... Be6 {[%clk 0:01:28.7]} 16. Ra6 {[%clk 0:01:48.2]} 16... Nxe3 {[%clk
0:00:56.5]} 17. Bxe6 {[%clk 0:01:33.1]} 17... Nxf1 {[%clk 0:00:47.4]} 18. Bxf7+
{[%clk 0:01:30.8]} 18... Kxf7 {[%clk 0:00:48]} 19. Rxc6 {[%clk 0:01:32.7]} 19...
Rb6 {[%clk 0:00:21.5]} 20. Rxb6 {[%clk 0:01:20]} 20... cxb6 {[%clk 0:00:23.4]}
21. Kxf1 {[%clk 0:01:21.1]} 21... Qd5 {[%clk 0:00:23.1]} 22. Ne1 {[%clk
0:01:10.2]} 22... b4 {[%clk 0:00:21.7]} 23. Qh5+ {[%clk 0:01:06.8]} 23... Ke7
{[%clk 0:00:20.2]} 24. cxb4 {[%clk 0:00:57.6]} 24... Kd7 {[%clk 0:00:18.9]} 25.
Nc3 {[%clk 0:00:57.1]} 25... Qe6 {[%clk 0:00:16.5]} 26. b5 {[%clk 0:00:53.9]}
26... Bc5 {[%clk 0:00:15.5]} 27. Qf3 {[%clk 0:00:50.3]} 27... Rf8 {[%clk
0:00:10.4]} 28. Qb7+ {[%clk 0:00:50.4]} 28... Ke8 {[%clk 0:00:12.1]} 29. Ne4
{[%clk 0:00:51.3]} 29... Qe7 {[%clk 0:00:09.7]} 30. Qc6+ {[%clk 0:00:47.5]}
30... Kf7 {[%clk 0:00:11.1]} 31. Nf3 {[%clk 0:00:46.4]} 31... Kg8 {[%clk
0:00:10.6]} 32. Qd5+ {[%clk 0:00:47]} 32... Kh7 {[%clk 0:00:05.2]} 33. Qxe5
{[%clk 0:00:40.9]} 33... Qxe5 {[%clk 0:00:04.6]} 34. Nxe5 {[%clk 0:00:42.8]}
34... Bd4 {[%clk 0:00:06.5]} 35. Nc4 {[%clk 0:00:42.6]} 35... Rf5 {[%clk
0:00:06.7]} 36. Ncd6 {[%clk 0:00:39.1]} 36... Rd5 {[%clk 0:00:06.6]} 37. f4
{[%clk 0:00:22.1]} 37... Bxb2 {[%clk 0:00:06.1]} 38. Ke2 {[%clk 0:00:23.3]}
38... Ba3 {[%clk 0:00:05.4]} 39. Nc4 {[%clk 0:00:24.5]} 39... Bc5 {[%clk
0:00:06.8]} 40. Nc3 {[%clk 0:00:21.5]} 40... Rd4 {[%clk 0:00:05.1]} 41. g3
{[%clk 0:00:18.2]} 41... Rd8 {[%clk 0:00:04.5]} 42. Na4 {[%clk 0:00:16.9]} 42...
Bd4 {[%clk 0:00:05.6]} 43. Kf3 {[%clk 0:00:16.9]} 43... Re8 {[%clk 0:00:06.2]}
44. h4 {[%clk 0:00:15.7]} 44... Kg6 {[%clk 0:00:07.3]} 45. g4 {[%clk 0:00:14.5]}
45... h5 {[%clk 0:00:06.7]} 46. f5+ {[%clk 0:00:09.6]} 46... Kh7 {[%clk
0:00:04.5]} 47. g5 {[%clk 0:00:10.5]} 47... Kg8 {[%clk 0:00:04.8]} 48. Kf4
{[%clk 0:00:10.8]} 48... Kf8 {[%clk 0:00:04.8]} 49. Naxb6 {[%clk 0:00:11.2]} 1-0

[Event "*** Titled Tuesday 3|2 Blitz (Early)"]
[Site "Chess.com"]
[Date "2017.01.03"]
[Round "4"]
[White "ChessWarrior7197"]
[Black "yian123"]
[Result "1-0"]
[WhiteElo "2511"]
[BlackElo "2385"]
[TimeControl "180+2"]
[EndTime "11:50:58 PST"]
[Termination "ChessWarrior7197 won by resignation"]

1. e4 {[%clk 0:03:01.9]} 1... e5 {[%clk 0:02:57]} 2. Nf3 {[%clk 0:03:02.3]} 2...
Nc6 {[%clk 0:02:57.9]} 3. Bb5 {[%clk 0:03:02.9]} 3... a6 {[%clk 0:02:58.8]} 4.
Ba4 {[%clk 0:03:03.4]} 4... Nf6 {[%clk 0:02:59.5]} 5. O-O {[%clk 0:03:03.8]}
5... Be7 {[%clk 0:02:59.6]} 6. d3 {[%clk 0:03:04.4]} 6... b5 {[%clk 0:02:53.9]}
7. Bb3 {[%clk 0:03:05]} 7... d6 {[%clk 0:02:54.7]} 8. a3 {[%clk 0:03:03]} 8...
O-O {[%clk 0:02:53]} 9. Nc3 {[%clk 0:03:03.9]} 9... Na5 {[%clk 0:02:49.7]} 10.
Ba2 {[%clk 0:03:04.2]} 10... c5 {[%clk 0:02:49.6]} 11. Nd5 {[%clk 0:03:05]}
11... Be6 {[%clk 0:02:47.3]} 12. Ng5 {[%clk 0:03:00]} 12... Bxd5 {[%clk
0:02:34.5]} 13. exd5 {[%clk 0:03:00.8]} 13... c4 {[%clk 0:02:26.9]} 14. dxc4
{[%clk 0:02:58.8]} 14... Nxc4 {[%clk 0:02:26.9]} 15. Nf3 {[%clk 0:02:50.9]}
15... Rc8 {[%clk 0:02:24.9]} 16. a4 {[%clk 0:02:37.7]} 16... Qd7 {[%clk
0:02:18.8]} 17. axb5 {[%clk 0:02:37.7]} 17... axb5 {[%clk 0:02:20.7]} 18. b3
{[%clk 0:02:26.8]} 18... Nb6 {[%clk 0:02:11.9]} 19. b4 {[%clk 0:02:27.3]} 19...
Nc4 {[%clk 0:02:11.4]} 20. Bb3 {[%clk 0:02:27.5]} 20... Qb7 {[%clk 0:02:10.6]}
21. Nh4 {[%clk 0:01:54.6]} 21... g6 {[%clk 0:01:57.4]} 22. Bh6 {[%clk
0:01:48.4]} 22... Rfe8 {[%clk 0:01:57.4]} 23. Nf3 {[%clk 0:01:44.6]} 23... Qxd5
{[%clk 0:01:51.6]} 24. Qe2 {[%clk 0:01:42.7]} 24... Qe4 {[%clk 0:01:48.8]} 25.
Qd1 {[%clk 0:01:35.3]} 25... d5 {[%clk 0:01:47.9]} 26. Re1 {[%clk 0:01:30.1]}
26... Qf5 {[%clk 0:01:43.9]} 27. Bxc4 {[%clk 0:01:19.6]} 27... Rxc4 {[%clk
0:01:37.4]} 28. Rxe5 {[%clk 0:01:12.9]} 28... Qd7 {[%clk 0:01:20.2]} 29. Bg5
{[%clk 0:01:02]} 29... Rxb4 {[%clk 0:01:10]} 30. h3 {[%clk 0:00:33.2]} 30... Re4
{[%clk 0:00:57.8]} 31. Bxf6 {[%clk 0:00:34]} 31... Bxf6 {[%clk 0:00:56.4]} 32.
Rxd5 {[%clk 0:00:35.6]} 32... Qxd5 {[%clk 0:00:38.5]} 33. Qxd5 {[%clk
0:00:37.5]} 33... Bxa1 {[%clk 0:00:39.9]} 34. Qxb5 {[%clk 0:00:38.3]} 34... Bf6
{[%clk 0:00:37]} 35. g3 {[%clk 0:00:37.9]} 35... Kg7 {[%clk 0:00:37.3]} 36. Kg2
{[%clk 0:00:37.4]} 36... R4e7 {[%clk 0:00:37.8]} 37. Qd3 {[%clk 0:00:35.4]}
37... Rc7 {[%clk 0:00:36.7]} 38. c4 {[%clk 0:00:36]} 38... Rec8 {[%clk
0:00:34.5]} 39. Nd2 {[%clk 0:00:36.8]} 39... Rd8 {[%clk 0:00:34.7]} 40. Qc2
{[%clk 0:00:22.4]} 40... Rdc8 {[%clk 0:00:27.2]} 41. Qa4 {[%clk 0:00:21.9]}
41... Bg5 {[%clk 0:00:26.6]} 42. Ne4 {[%clk 0:00:22.7]} 42... Bf6 {[%clk
0:00:23]} 43. c5 {[%clk 0:00:23]} 43... Be7 {[%clk 0:00:21.6]} 44. Qd4+ {[%clk
0:00:24]} 44... f6 {[%clk 0:00:20.4]} 45. g4 {[%clk 0:00:25.1]} 45... Rd8 {[%clk
0:00:17]} 46. Qc3 {[%clk 0:00:24.3]} 46... Kf7 {[%clk 0:00:16.3]} 47. Qc4+
{[%clk 0:00:25.5]} 47... Kf8 {[%clk 0:00:17.4]} 48. Qe6 {[%clk 0:00:26.1]} 48...
Kg7 {[%clk 0:00:16.2]} 49. h4 {[%clk 0:00:27]} 49... Rd4 {[%clk 0:00:15]} 50. h5
{[%clk 0:00:27.3]} 50... Rd8 {[%clk 0:00:14]} 51. g5 {[%clk 0:00:24.4]} 51...
Rf8 {[%clk 0:00:11]} 52. gxf6+ {[%clk 0:00:23.3]} 52... Bxf6 {[%clk 0:00:12.1]}
53. Nxf6 {[%clk 0:00:24.2]} 53... Rxc5 {[%clk 0:00:11.3]} 54. Qe7+ {[%clk
0:00:23.7]} 1-0